Cogmind - Beta 9.6 @@@ ROGUE MODE // 2020.09.06 @ 23:33:05 Player: Finestep Result: Destroyed by G-34 Mercenary with Small Laser Performance ------------- Evolutions (0) 0 Regions Visited (2) 400 Robots Destroyed (39) 195 Value Destroyed (502) 502 Prototype IDs (5) 100 Alien Tech Used (0) 0 Bonus (0) 0 TOTAL SCORE: 1197 Bonus ------- None Cogmind --------- Core Integrity 0/250 Matter 279/300 Energy 125/125 System Corruption 0% Temperature Cool (6) Movement Treading (180) Ox1 Location -10/Mines Parts ------- > --- POWER (1) -------- Light Ion Engine > --- PROPULSION (2) --- Light Treads Light Treads > --- UTILITY (2) ------ High-capacity Storage Unit High-capacity Storage Unit > --- WEAPON (2) ------- Light Assault Rifle Light Cannon > --- INVENTORY (20) --- Light Ion Engine Large Storage Unit Core Shielding Improved Light Armor Plating Hacking Suite Medium Laser Medium Laser Light Assault Rifle Light Assault Rifle Light Assault Rifle Light Assault Rifle Light Cannon Light Cannon Grenade Launcher Datajack Mining Laser Stasis Trap (100%) Stasis Trap (100%) Peak State ------------ > --- POWER ------------ Light Ion Engine > --- PROPULSION ------- Light Treads Light Treads > --- UTILITY ---------- High-capacity Storage Unit High-capacity Storage Unit > --- WEAPON ----------- Assault Rifle Light Assault Rifle > --- INVENTORY -------- Light Treads Light Treads Small Storage Unit Small Storage Unit Large Storage Unit Core Shielding Medium Laser Medium Laser Medium Laser Light Assault Rifle Light Assault Rifle Light Assault Rifle Light Assault Rifle Light Assault Rifle Light Cannon Light Cannon Light Cannon Light Cannon Light Cannon Grenade Launcher [Rating: 9] Favorites ----------- Power Light Ion Engine Engine Light Ion Engine Propulsion Light Treads Treads Light Treads Utility High-capacity Storage Unit Storage High-capacity Storage Unit Weapon Light Assault Rifle Ballistic Gun Light Assault Rifle Ballistic Cannon Light Cannon Launcher Grenade Launcher Special Melee Weapon Datajack Build | -11 -10 -10 ------- Run | Scr Mat Min Slots Evolved . | . . . Power . | . . . Propulsion . | . . . Utility . | . . . Weapon . | . . . Parts Attached 30 | 7 11 12 Power 3 | 1 1 1 Engine 3 | 1 1 1 Core . | . . . Reactor . | . . . Propulsion 7 | 2 3 2 Treads 7 | 2 3 2 Leg . | . . . Wheel . | . . . Hover . | . . . Flight . | . . . Utility 4 | 2 2 . Device . | . . . Storage 4 | 2 2 . Processor . | . . . Hackware . | . . . Protection . | . . . Artifact . | . . . Weapon 16 | 2 5 9 Energy Gun . | . . . Energy Cannon . | . . . Ballistic Gun 8 | 2 3 3 Ballistic Cannon 4 | . . 4 Launcher 3 | . 2 1 Special Weapon . | . . . Impact Weapon . | . . . Slashing Weapon . | . . . Piercing Weapon . | . . . Special Melee Weapon 1 | . . 1 Unidentified Prototypes . | . . . Parts Lost 6 | . 1 5 Power 2 | . 1 1 Propulsion 2 | . . 2 Utility . | . . . Weapon 2 | . . 2 Highest Loss Streak 2 | . 1 2 Average Slot Usage (%) 98 | . 99 98 Engine 13 | . 13 12 Treads 27 | . 27 27 Storage 28 | . 28 28 Ballistic Gun 18 | . 27 4 Ballistic Cannon 8 | . . 20 Naked Turns . | . . . Heaviest Build 73 | 16 72 73 Greatest Support 40 | 40 40 40 Greatest Overweight (x) 1 | . 1 1 Average Overweight (x) . | . . 1 Largest Inventory Capacity 20 | 8 20 20 Average Capacity 18 | 6 19 20 Most Carried 20 | 2 20 20 Average Carried 15 | 1 14 19 Final Capacity 20 | 8 20 20 Final Carried 20 | 2 20 18 Class Distribution -------------------- 92% | Hauler-Mutant 7% | Mutant Dominant Class ---------------- Hauler-Mutant | -10/Materials Hauler-Mutant | -10/Mines Resources | -11 -10 -10 ----------- Run | Scr Mat Min Matter Collected 1090 | 326 379 385 Remotely . | . . . Salvage Created 1106 | 171 570 365 Parts 77 | 17 44 16 Haulers Intercepted 2 | . 2 . Recyclers Shooed 1 | 1 . . Parts Field Recycled . | . . . Retrieved Matter . | . . . Parts Self-Destructed . | . . . Prevented . | . . . Kills | -11 -10 -10 ------- Run | Scr Mat Min Combat Hostiles Destroyed 22 | . 13 9 Guns 14 | . 11 3 Cannons 5 | . . 5 AOE 3 | . 2 1 Classes Destroyed 8 | 2 5 1 Worker 1 | . . 1 Tunneler 5 | 5 . . Hauler 2 | . 2 . Recycler 5 | 1 2 2 Operator 1 | . 1 . Watcher 3 | . 3 . Swarmer 15 | . 9 6 Grunt 6 | . 4 2 Best Kill Streak 5 | 2 5 3 Combat Bots Only 5 | . 5 2 Max Kills in Single Turn 1 | 1 1 1 Gunslinging . | . . . Exploded 1 | . 1 1 Melee . | . . . Uniques/NPCs Destroyed 1 | . . 1 YI-UF0 (-10/Mines) Combat | -11 -10 -10 -------- Run | Scr Mat Min Damage Taken 1417 | . 552 865 Core 258 | . 93 165 Absorbed by Shields . | . . . Core Remaining (%) 100 | 100 . . Volleys Fired 136 | 14 70 52 Largest 2 | 2 2 2 Hottest 70 | 40 40 70 Shots Fired 245 | 28 137 80 Gun 183 | 28 134 21 Cannon 57 | . . 57 Launcher 5 | . 3 2 Special . | . . . Kinetic 240 | 28 134 78 Thermal . | . . . Explosive 5 | . 3 2 Electromagnetic . | . . . Robot Hit Streak 10 | 5 10 6 Robot Miss Streak 6 | 2 3 6 Penetration Max . | . . . Secondary Targets . | . . . Shots Hit Robots 138 | 16 87 35 Core Hits 58 | 7 32 19 Critical Hits . | . . . Critical Kills . | . . . Critical Parts Destroyed . | . . . Melee Attacks 1 | . . 1 Impact . | . . . Slashing . | . . . Piercing . | . . . Sneak Attacks 1 | . . 1 Combat Hostiles . | . . . Follow-up Attacks . | . . . Damage Inflicted 2091 | 168 1187 736 Guns 1223 | 168 957 98 Cannons 539 | . . 539 Explosions 329 | . 230 99 Melee . | . . . Ramming . | . . . Kinetic 1762 | 168 957 637 Thermal . | . . . Explosive 329 | . 230 99 Electromagnetic . | . . . Impact . | . . . Slashing . | . . . Piercing . | . . . Highest Corruption . | . . . Average Corruption . | . . . Corruption Purged . | . . . Overload Shots . | . . . Overflow Damage 13 | . 5 8 Projectiles 8 | . . 8 Explosions 5 | . 5 . Melee . | . . . Knockbacks 8 | . . 8 Impact . | . . . Kinetic 8 | . . 8 Secondary . | . . . Self-Inflicted Damage 10 | . 10 . Shots 1 | . 1 . Rammed . | . . . Targets Rammed . | . . . Kicked . | . . . Crushed . | . . . Highest Temperature 27 | . 12 27 Average Temperature 7 | . 6 8 Received Heat Transfer 210 | . 120 90 Siege Activations . | . . . Robots Corrupted . | . . . Combat Hostiles . | . . . Parts Fried . | . . . Impact Corruptions . | . . . Robots Melted . | . . . Combat Hostiles . | . . . Parts Melted . | . . . Heat Transferred . | . . . Parts Sabotaged . | . . . Parts Stolen . | . . . Parts Stripped . | . . . Power Chain Reactions . | . . . Missiles Intercepted . | . . . Alert | -11 -10 -10 ------- Run | Scr Mat Min Peak Influence 203 | 30 203 110 Average Influence 49 | 10 55 47 Maximum Alert Level 1 | . 1 . Low Security (%) 99 | 100 99 100 Level 1 . | . . . Level 2 . | . . . Level 3 . | . . . Level 4 . | . . . Level 5 . | . . . High Security . | . . . Max Security . | . . . Squads Dispatched 4 | . 4 . Investigation 2 | . 2 . Extermination . | . . . Reinforcement 2 | . 2 . Assault . | . . . Garrison . | . . . Intercept . | . . . Construction Impeded . | . . . Haulers Reinforced . | . . . Stealth | -11 -10 -10 --------- Run | Scr Mat Min Distress Signals 1 | . . 1 Communications Jammed . | . . . Distress Signals . | . . . Times Spotted 44 | . 27 17 Peak Tracking Total 7 | . 7 6 Tactical Retreats 2 | . 1 1 Traps | -11 -10 -10 ------- Run | Scr Mat Min Traps Triggered 1 | . 1 . Indirectly . | . . . Trap Hack Attempts . | . . . Triggered . | . . . Disarmed . | . . . Reprogrammed . | . . . Reused . | . . . Traps Extracted . | . . . Installed . | . . . Triggered . | . . . Machines | -11 -10 -10 ---------- Run | Scr Mat Min Machines Disabled . | . . . Max in Single Turn . | . . . Machines Sabotaged . | . . . Garrisons Compromised . | . . . Overloaded Fab Kills . | . . . Fab Network Shutdowns . | . . . Hacking | -11 -10 -10 --------- Run | Scr Mat Min Machines Accessed 7 | . 7 . Terminals 6 | . 6 . Fabricators . | . . . Repair Stations 1 | . 1 . Recycling Units . | . . . Scanalyzers . | . . . Garrison Access . | . . . Total Hacks 46 | . 46 . Successful 31 | . 31 . Failed 14 | . 14 . Catastrophic 1 | . 1 . Database Lockouts 1 | . 1 . Manual 25 | . 25 . Terminals 37 | . 37 . Fabricators . | . . . Repair Stations 9 | . 9 . Recycling Units . | . . . Scanalyzers . | . . . Garrison Access . | . . . Terminal Hacks 18 | . 18 . Robot Schematic 1 | . 1 . Robot Analysis 6 | . 6 . Prototype ID Bank 2 | . 2 . Branch Access Points 1 | . 1 . Terminal Index 1 | . 1 . Locate Traps 2 | . 2 . Recall Investigation 1 | . 1 . Recall Reinforcements 1 | . 1 . Hauler Manifests 1 | . 1 . Registered Components 1 | . 1 . Zone Layout 1 | . 1 . Fabricator Hacks . | . . . Repair Station Hacks 8 | . 8 . Scan Component 4 | . 4 . Repair 4 | . 4 . Recycling Unit Hacks . | . . . Scanalyzer . | . . . Garrison Access Hacks . | . . . Unauthorized Hacks 5 | . 5 . Terminals 5 | . 5 . Track 1 | . 1 . Botnet 4 | . 4 . Fabricators . | . . . Repair Stations . | . . . Recycling Units . | . . . Scanalyzers . | . . . Garrison Access . | . . . Data Cores Recovered . | . . . Used . | . . . Hacking Detections 7 | . 7 . Full Trace Events . | . . . Feedback Events . | . . . Feedback Blocked . | . . . Robot Schematics Acquired 1 | . 1 . Robots Built . | . . . Matter . | . . . Time . | . . . Total Robot Build Rating . | . . . Part Schematics Acquired . | . . . Parts Built . | . . . Matter . | . . . Time . | . . . Total Part Build Rating . | . . . Parts Repaired 4 | . 4 . Time 104 | . 104 . Parts Recycled . | . . . Recycled Matter . | . . . Retrieved Matter . | . . . Retrieved Components . | . . . Parts Scanalyzed . | . . . Part Schematics Acquired . | . . . Parts Damaged . | . . . Bothacking | -11 -10 -10 ------------ Run | Scr Mat Min Used RIF Installer . | . . . Robots Hacked 1 | . . 1 Non-combat . | . . . Combat 1 | . . 1 Robot Hacks Applied 1 | . . 1 parse_system 1 | . . 1 Relay Couplers Released . | . . . Robots Rewired . | . . . Allies Hacked . | . . . Hacks Repelled . | . . . Allies | -11 -10 -10 -------- Run | Scr Mat Min Total Allies . | . . . Largest Group . | . . . Highest-Rated Group . | . . . Highest-Rated Ally . | . . . Total Orders . | . . . Ally Attacks . | . . . Total Damage . | . . . Kills . | . . . Allies Corrupted . | . . . Allies Melted . | . . . Intel | -11 -10 -10 ------- Run | Scr Mat Min Robot Analysis Total 6 | . 6 . Derelict Logs Recovered 1 | . . 1 Drone Launches . | . . . Drone Recoveries . | . . . Exploration | -11 -10 -10 ------------- Run | Scr Mat Min Turns Passed 2852 | 209 1607 1036 Spaces Moved 1290 | 101 702 487 Core 3 | 3 . . Treads 1287 | 98 702 487 Legs . | . . . Wheels . | . . . Hover . | . . . Flight . | . . . Fastest Speed 50 | 50 160 180 Average Speed 178 | 156 179 180 Slowest Speed 180 | 160 180 180 Overloaded Moves . | . . . Propulsion Burnouts . | . . . Robots Hopped . | . . . Cave-ins Triggered . | . . . Exploration Rate (%) 56 | 7 97 65 Regions Visited 2 Branch Regions 1 Pre-discovered Areas . | . . . Known Exits Taken 1 | . 1 . Unknown Exits Taken 1 | 1 . . Scrap Searched 2 | . . 2 Spaces Dug 24 | . 19 5 Terrain Destroyed 39 | . 24 15 Melee . | . . . Projectile . | . . . AOE 39 | . 24 15 Actions | -11 -10 -10 --------- Run | Scr Mat Min Total 1614 | 123 922 569 Wait 120 | . 116 4 Move 1288 | 100 701 487 Hop . | . . . Pick Up 30 | 2 21 7 Fast Attach 10 | 7 2 1 Attach 6 | . 2 4 Detach . | . . . Swap 14 | . 7 7 Drop 9 | . 3 6 Fire 136 | 14 70 52 Melee 1 | . . 1 Ram . | . . . Kick . | . . . Crush . | . . . Escape Stasis . | . . . Rewire . | . . . Trap . | . . . Miscellaneous . | . . . Route ------- -11/Scrapyard -10/Materials (discovered 5 exits: [*Mat x3] / *Min x2) -10/Mines (discovered 2 exits: [*Mat x2]) History --------- Turn | Location | Event 15 | -11/Scrapyard | Discovered new exit (range 16) 210 | -11/Scrapyard | Entered Materials 433 | -10/Materials | Discovered new exit (range 15) 518 | -10/Materials | Build established: Hauler-Mutant 683 | -10/Materials | Repaired Lgt. Treads 683 | -10/Materials | Discovered new exit (range 10) 819 | -10/Materials | Discovered new exit (range 12) 1295 | -10/Materials | Identified exit to Mines 1304 | -10/Materials | Discovered new exit (range 5) 1426 | -10/Materials | Central database locked down 1609 | -10/Materials | Discovered new exit (range 10) 1727 | -10/Materials | Repaired Lgt. Treads 1754 | -10/Materials | Repaired Lgt. Treads 1781 | -10/Materials | Repaired Lgt. Treads 1817 | -10/Materials | Entered Mines 1854 | -10/Mines | Discovered new exit (range 12) 1873 | -10/Mines | Discovered new exit (range 13) 1930 | -10/Mines | Core integrity fell below 50% 2019 | -10/Mines | Assisted by bots powering up and referring to "LRC-V3" 2281 | -10/Mines | Core integrity fell below 20% 2288 | -10/Mines | Destroyed YI-UF0 2378 | -10/Mines | Assembled infested the area 2405 | -10/Mines | Learned 2 Materials zone layouts 2734 | -10/Mines | Found a hidden stash of uninstalled traps 2853 | -10/Mines | Destroyed by G-34 Mercenary with Small Laser Last Messages --------------- 02650_ Destroyed Flight Unit. 02650_ S-10 Pest knocked back. 02659_ Lgt. Treads destroyed. 02660_ Critical hit. 02660_ Lgt. Cannon destroyed. 02667_ K-01 Serf destroyed. 02670_ Destroyed Lgt. Assault Rifle. 02670_ S-10 Pest destroyed. 02674_ Acquired 13 matter. 02681_ Acquired Lgt. Ion Engine. 02683_ Acquired 10 matter. 02686_ Acquired Lgt. Ion Engine. 02714_ Acquired 42 matter. 02734_ A stash of uninstalled traps is hidden here! 02743_ Acquired Stasis Trap. 02760_ Searching scrap... 02760_ Found 37 Matter. 02760_ Found Utility Shielding. 02761_ Acquired 37 matter. 02805_ Acquired Stasis Trap. Map ----- +----------------------------------------------------+ | | | | | | | | | | | | | | | | | ?????????????????????????????????????????????????? | | ?????????????????????????????????????????????????? | | ??????????????????????????################???????? | | ??????????????????????????# ##??????? | | ?????????????????????????????? ##?????? | | ?????????????????????????????????????# < &####### | | ?????????????????????????????????????## && | | ??????????????????????????????????????# ##### | | ??????????????????????????????????????# ##??## | | ??????????????????????????????????????# ##??## | | ??????????????????????????????######### #???# | | ??????????????????????????????# ! #??## | | ?????????????#?????????????#### ############# | | ?????????????# #####???????# #???#### | | ?????????????? ???????# ###???# | | ??????????????" """ ??????# #?????## | | ?????????????"" """ ####### #??????### ### ## | | ?????????????"" """ g @ #????????###??## ## | | ?????????? g ##########??????????????# ## | | ?????????"" """ """ ????????????????????????# | | ????????????""" """ ?????????????????????????# ## | | ?????????????"" """ ?????????????????????????# ## | | ??????????????? ??????????????????????????# ## | | ??????????????" """??????????????????????????# | | ??????????????" ""???????????????????????????# | | ??????????????? ""???????????????????????????# | | ????????????????????????????????????????????## | | ???????????????????????????????????????????## | | ??????????????????????????????????##########[! | | ??????????????????????????? = =[ ### | | ??????????????????????????????????###########!##?? | | ????????????????????????????????????????????###??? | | ?????????????????????????????????????????????????? | | ?????????????????????????????????????????????????? | | ?????????????????????????????????????????????????? | | ?????????????????????????????????????????????????? | | ?????????????????????????????????????????????????? | | ?????????????????????????????????????????????????# | | ????????????????????????????????????????????????# | | ???????????????????????????????????????????????# # | | ??????????????????????????????????????????????# #? | | ?????????????????????????????????????????????# #?# | +----------------------------------------------------+ Best States ------------- Heat Dissipation 25 Energy Generation 10 Energy Capacity 250 Matter Stores 300 Matter Capacity 300 Sight Range 16 Terrain Scan Density 10 Evasion (%) 40 Recoil Reduction 2 Item Schematics ----------------- None Robot Schematics ------------------ M-13 Machinist | -10/Materials | Hacked Fabricated ------------ Nothing Alien Tech Used ----------------- None Achievements -------------- None Challenges ------------ None Game ------ Seed SubatomicGatlingLeg Manual? 0 Play Time 00:13:56 Cumulative 455.6 hours Start 2020.09.06 @ 23:07:46 End 2020.09.06 @ 23:33:05 Sessions 1 Manual Loads 0 Difficulty Rogue Special Mode None Game No. 307 Rogue 307 Adventurer 0 Explorer 0 Win Type - Total 4 Types 4/0/0/0/0/0/0 Lore% 86 Gallery% 87 Achievement% 66 Wizard Run 0 Options --------- ASCII 0 Keyboard 0 Movement Mouse Keybinds 1 Fullscreen 2 Font 24/Smallcaps Map View 76x50 Tactical HUD 1 Map Filters NONE Filters NONE Steam 1 RUN: 134f56d8-2a55-4428-aa0e-5309a086d254